fUST/lending_fUST_20260624
["ID","MTS","AMOUNT","RATE_DAILY","PERIOD"]
[426325499,1782305460000,-500.0,0.00058082,120]
[426325497,1782305460000,-166.20308006,0.00058082,120]
[426325498,1782305460000,-500.0,0.00058082,120]
[426325501,1782305460000,-623.83,0.00058082,120]
[426325500,1782305460000,-190.57384034,0.00058082,120]
[426325505,1782305460000,-500.0,0.00058082,120]
[426325504,1782305460000,-500.0,0.00058082,120]
[426325503,1782305460000,-500.0,0.00058082,120]
[426325508,1782305460000,-673.8,0.00058082,120]
[426325496,1782305460000,-531.47,0.00058082,120]
[426325543,1782305460000,-518.52,0.00058082,120]
[426325534,1782305460000,-16139.94,0.00058082,120]
[426325567,1782305460000,-500.0,0.00058356,120]
[426325575,1782305460000,-1944.73,0.00058356,120]
[426325574,1782305460000,-1158.26,0.00058356,120]
[426325571,1782305460000,-15325.24,0.00058356,120]
[426325573,1782305460000,-773.51,0.00058356,120]
[426325572,1782305460000,-500.0,0.00058356,120]
[426325578,1782305460000,-500.0,0.00058356,120]
[426325576,1782305460000,-973.23,0.00058356,120]
[426325577,1782305460000,-1508.11,0.00058356,120]
[426325579,1782305460000,-500.0,0.00058356,120]
[426325580,1782305460000,-2368.88,0.00058356,120]
[426325582,1782305460000,-605.81,0.00058356,120]
[426325584,1782305460000,-500.0,0.00058356,2]
[426325585,1782305460000,-713.71,0.00058356,120]
[426325583,1782305460000,-1055.6,0.00058356,11]
[426325586,1782305460000,-650.86,0.00058356,120]
[426325587,1782305460000,-850.9,0.00058356,120]
[426325588,1782305460000,-1529.97,0.00058356,90]
[426325589,1782305460000,-16139.94,0.00058356,120]
[426325590,1782305460000,-852.17,0.00058356,120]
[426325593,1782305460000,-3618.056168,0.00058356,120]
[426325592,1782305460000,-3618.056168,0.00058356,120]
[426325591,1782305460000,-3508.86,0.00058356,120]
[426325594,1782305460000,-3618.056168,0.00058356,120]
[426325535,1782305460000,-852.17,0.00058082,120]
[426325570,1782305460000,-500.0,0.00058356,120]
[426325568,1782305460000,-500.0,0.00058356,2]
[426325581,1782305460000,-697.19,0.00058356,120]
[426325564,1782305460000,-500.0,0.00058356,120]
[426325536,1782305460000,-3508.86,0.00058082,120]
[426325560,1782305460000,-500.0,0.00058356,120]
[426325539,1782305460000,-517.54,0.00058082,120]
[426325537,1782305460000,-624.84,0.00058082,120]
[426325538,1782305460000,-500.0,0.00058082,120]
[426325545,1782305460000,-553.39034825,0.00058082,120]
[426325555,1782305460000,-500.0,0.00058356,120]
[426325547,1782305460000,-2250.0,0.00058356,120]
[426325544,1782305460000,-2131.75,0.00058082,120]
[426325550,1782305460000,-514.6,0.00058356,120]
[426325549,1782305460000,-518.0572857,0.00058356,120]
[426325546,1782305460000,-2250.0,0.00058356,120]
[426325548,1782305460000,-2238.0,0.00058356,120]
[426325556,1782305460000,-531.47,0.00058356,120]
[426325565,1782305460000,-500.0,0.00058356,120]
[426325559,1782305460000,-623.83,0.00058356,120]
[426325554,1782305460000,-799.0,0.00058356,6]
[426325566,1782305460000,-673.8,0.00058356,120]
[426325563,1782305460000,-490.01003685,0.00058356,120]
[426325569,1782305460000,-853.95,0.00058356,120]
[426325561,1782305460000,-500.0,0.00058356,120]
[426325562,1782305460000,-500.0,0.00058356,120]
[426325557,1782305460000,-500.0,0.00058356,120]
[426325552,1782305460000,-978.44,0.00058356,120]
[426325553,1782305460000,-500.0,0.00058356,120]
[426325551,1782305460000,-500.0,0.00058356,120]
[426325558,1782305460000,-500.0,0.00058356,120]
[426325633,1782305461000,-2368.88,0.0005863,120]
[426325645,1782305461000,-624.84,0.0005863,120]
[426325636,1782305461000,-1055.6,0.0005863,11]
[426325635,1782305461000,-605.81,0.0005863,120]
[426325629,1782305461000,-973.23,0.0005863,120]
[426325634,1782305461000,-697.19,0.0005863,120]
[426325628,1782305461000,-1944.73,0.0005863,120]
[426325630,1782305461000,-1508.11,0.0005863,120]
[426325632,1782305461000,-500.0,0.0005863,120]
[426325627,1782305461000,-1158.26,0.0005863,120]
[426325644,1782305461000,-3508.86,0.0005863,120]
[426325631,1782305461000,-500.0,0.0005863,120]
[426325646,1782305461000,-539.84277784,0.0005863,120]
[426325651,1782305461000,-518.52,0.0005863,120]
[426325637,1782305461000,-500.0,0.0005863,2]
[426325642,1782305461000,-16139.94,0.0005863,120]
[426325639,1782305461000,-650.86,0.0005863,120]
[426325638,1782305461000,-713.71,0.0005863,120]
[426325643,1782305461000,-852.17,0.0005863,120]
[426325640,1782305461000,-850.9,0.0005863,120]
[426325652,1782305461000,-2131.75,0.0005863,120]
[426325641,1782305461000,-1529.97,0.0005863,90]
[426325648,1782305461000,-1679.07,0.0005863,120]
[426325649,1782305461000,-2224.45,0.0005863,90]
[426325650,1782305461000,-1522.77,0.0005863,120]
[426325625,1782305461000,-500.0,0.0005863,120]
[426325647,1782305461000,-517.54,0.0005863,120]
[426325624,1782305461000,-15325.24,0.0005863,120]
[426325595,1782305461000,-624.84,0.00058356,120]
[426325621,1782305461000,-500.0,0.0005863,2]
[426325596,1782305461000,-3618.056168,0.00058356,120]
[426325597,1782305461000,-500.0,0.00058356,120]
[426325598,1782305461000,-517.54,0.00058356,120]
[426325600,1782305461000,-2224.45,0.00058356,90]
[426325607,1782305461000,-500.0,0.0005863,120]
[426325605,1782305461000,-500.0,0.0005863,120]
[426325610,1782305461000,-531.47,0.0005863,120]
[426325603,1782305461000,-2131.75,0.00058356,120]
[426325609,1782305461000,-473.35373587,0.0005863,120]
[426325608,1782305461000,-799.0,0.0005863,6]
[426325601,1782305461000,-1522.77,0.00058356,120]
[426325602,1782305461000,-518.52,0.00058356,120]
[426325604,1782305461000,-514.6,0.0005863,120]
[426325606,1782305461000,-978.44,0.0005863,120]
[426325599,1782305461000,-1679.07,0.00058356,120]
[426325622,1782305461000,-853.95,0.0005863,120]
[426325612,1782305461000,-500.0,0.0005863,120]
[426325623,1782305461000,-500.0,0.0005863,120]
[426325613,1782305461000,-623.83,0.0005863,120]
[426325614,1782305461000,-500.0,0.0005863,120]
[426325611,1782305461000,-500.0,0.0005863,120]
[426325615,1782305461000,-500.0,0.0005863,120]
[426325620,1782305461000,-500.0,0.0005863,120]
[426325617,1782305461000,-500.0,0.0005863,120]
[426325619,1782305461000,-673.8,0.0005863,120]
[426325618,1782305461000,-500.0,0.0005863,120]
[426325616,1782305461000,-500.0,0.0005863,120]
[426325626,1782305461000,-773.51,0.0005863,120]
[426325654,1782305461000,-514.6,0.00058904,120]
[426325662,1782305461000,-623.83,0.00058904,120]
[426325655,1782305461000,-500.0,0.00058904,120]
[426325690,1782305461000,-1529.97,0.00058904,90]
[426325689,1782305461000,-850.9,0.00058904,120]
[426325698,1782305461000,-1522.77,0.00058904,120]
[426325688,1782305461000,-650.86,0.00058904,120]
[426325697,1782305461000,-2224.45,0.00058904,90]
[426325691,1782305461000,-16139.94,0.00058904,120]
[426325696,1782305461000,-1679.07,0.00058904,120]
[426325694,1782305461000,-624.84,0.00058904,120]
[426325692,1782305461000,-852.17,0.00058904,120]
[426325693,1782305461000,-3508.86,0.00058904,120]
[426325695,1782305461000,-517.54,0.00058904,120]
[426325699,1782305461000,-518.52,0.00058904,120]
[426325700,1782305461000,-2131.75,0.00058904,120]
[426325702,1782305461000,-217.0,0.00059,120]
[426325701,1782305461000,-1000.0,0.00059,120]
[426325703,1782305461000,-514.6,0.00059178,120]
[426325705,1782305461000,-978.44,0.00059178,120]
[426325704,1782305461000,-470.86581773,0.00059178,120]
[426325706,1782305461000,-799.0,0.00059178,6]
[426325709,1782305461000,-510.54670676,0.00059178,120]
[426325710,1782305461000,-623.83,0.00059178,120]
[426325708,1782305461000,-500.0,0.00059178,120]
[426325712,1782305461000,-500.0,0.00059178,120]
[426325711,1782305461000,-500.0,0.00059178,120]
[426325713,1782305461000,-673.8,0.00059178,120]
[426325714,1782305461000,-500.0,0.00059178,2]
[426325653,1782305461000,-748.13556844,0.000589,120]
[426325687,1782305461000,-713.71,0.00058904,120]
[426325684,1782305461000,-605.81,0.00058904,120]
[426325707,1782305461000,-531.47,0.00059178,120]
[426325683,1782305461000,-697.19,0.00058904,120]
[426325682,1782305461000,-2368.88,0.00058904,120]
[426325660,1782305461000,-500.0,0.00058904,120]
[426325657,1782305461000,-541.57251959,0.00058904,120]
[426325659,1782305461000,-531.47,0.00058904,120]
[426325658,1782305461000,-799.0,0.00058904,6]
[426325661,1782305461000,-500.0,0.00058904,120]
[426325666,1782305461000,-524.55163601,0.00058904,120]
[426325670,1782305461000,-500.0,0.00058904,2]
[426325667,1782305461000,-506.67181021,0.00058904,120]
[426325668,1782305461000,-673.8,0.00058904,120]
[426325664,1782305461000,-500.0,0.00058904,120]
[426325672,1782305461000,-513.85599097,0.00058904,120]
[426325673,1782305461000,-15325.24,0.00058904,120]
[426325669,1782305461000,-515.6887216,0.00058904,120]
[426325681,1782305461000,-500.0,0.00058904,120]
[426325665,1782305461000,-244.95586513,0.00058904,120]
[426325680,1782305461000,-500.0,0.00058904,120]
[426325678,1782305461000,-973.23,0.00058904,120]
[426325679,1782305461000,-1508.11,0.00058904,120]
[426325676,1782305461000,-1158.26,0.00058904,120]
[426325674,1782305461000,-500.0,0.00058904,120]
[426325656,1782305461000,-978.44,0.00058904,120]
[426325677,1782305461000,-1944.73,0.00058904,120]
[426325686,1782305461000,-500.0,0.00058904,2]
[426325675,1782305461000,-773.51,0.00058904,120]
[426325671,1782305461000,-853.95,0.00058904,120]
[426325663,1782305461000,-500.0,0.00058904,120]
[426325685,1782305461000,-1055.6,0.00058904,11]
[426325758,1782305462000,-518.52,0.00059178,120]
[426325752,1782305462000,-3508.86,0.00059178,120]
[426325753,1782305462000,-624.84,0.00059178,120]
[426325748,1782305462000,-850.9,0.00059178,120]
[426325750,1782305462000,-16139.94,0.00059178,120]
[426325747,1782305462000,-2392.578121,0.00059178,120]
[426325749,1782305462000,-1529.97,0.00059178,90]
[426325757,1782305462000,-1522.77,0.00059178,120]
[426325756,1782305462000,-2224.45,0.00059178,90]
[426325745,1782305462000,-650.86,0.00059178,120]
[426325759,1782305462000,-2131.75,0.00059178,120]
[426325751,1782305462000,-852.17,0.00059178,120]
[426325755,1782305462000,-1679.07,0.00059178,120]
[426325771,1782305462000,-15325.24,0.00059452,120]
[426325766,1782305462000,-500.0,0.00059452,120]
[426325768,1782305462000,-673.8,0.00059452,120]
[426325761,1782305462000,-978.44,0.00059452,120]
[426325767,1782305462000,-560.73074428,0.00059452,120]
[426325760,1782305462000,-514.6,0.00059452,120]
[426325769,1782305462000,-500.0,0.00059452,2]
[426325770,1782305462000,-853.95,0.00059452,120]
[426325764,1782305462000,-191.13325269,0.00059452,120]
[426325762,1782305462000,-799.0,0.00059452,6]
[426325763,1782305462000,-531.47,0.00059452,120]
[426325772,1782305462000,-500.0,0.00059452,120]
[426325782,1782305462000,-605.81,0.00059452,120]
[426325754,1782305462000,-517.54,0.00059178,120]
[426325765,1782305462000,-623.83,0.00059452,120]
[426325746,1782305462000,-2392.578121,0.00059178,120]
[426325716,1782305462000,-15325.24,0.00059178,120]
[426325738,1782305462000,-697.19,0.00059178,120]
[426325775,1782305462000,-1944.73,0.00059452,120]
[426325715,1782305462000,-853.95,0.00059178,120]
[426325718,1782305462000,-773.51,0.00059178,120]
[426325717,1782305462000,-500.0,0.00059178,120]
[426325720,1782305462000,-2702.467872,0.00059178,120]
[426325730,1782305462000,-1508.11,0.00059178,120]
[426325728,1782305462000,-9260.627784,0.00059178,120]
[426325729,1782305462000,-973.23,0.00059178,120]
[426325731,1782305462000,-500.0,0.00059178,120]
[426325719,1782305462000,-1158.26,0.00059178,120]
[426325721,1782305462000,-2702.467872,0.00059178,120]
[426325722,1782305462000,-2702.467872,0.00059178,120]
[426325727,1782305462000,-9260.627784,0.00059178,120]
[426325724,1782305462000,-1944.73,0.00059178,120]
[426325726,1782305462000,-9260.627784,0.00059178,120]
[426325723,1782305462000,-2702.467872,0.00059178,120]
[426325732,1782305462000,-10000.0,0.00059178,120]
[426325734,1782305462000,-10000.0,0.00059178,120]
[426325735,1782305462000,-10000.0,0.00059178,120]
[426325739,1782305462000,-605.81,0.00059178,120]
[426325737,1782305462000,-2368.88,0.00059178,120]
[426325736,1782305462000,-500.0,0.00059178,120]
[426325742,1782305462000,-713.71,0.00059178,120]
[426325733,1782305462000,-10000.0,0.00059178,120]
[426325744,1782305462000,-2392.578121,0.00059178,120]
[426325740,1782305462000,-1055.6,0.00059178,11]
[426325741,1782305462000,-500.0,0.00059178,2]
[426325743,1782305462000,-2392.578121,0.00059178,120]
[426325773,1782305462000,-773.51,0.00059452,120]
[426325725,1782305462000,-9260.627784,0.00059178,120]
[426325776,1782305462000,-973.23,0.00059452,120]
[426325809,1782305462000,-853.95,0.00059726,120]
[426325811,1782305462000,-500.0,0.00059726,120]
[426325810,1782305462000,-15325.24,0.00059726,120]
[426325815,1782305462000,-973.23,0.00059726,120]
[426325813,1782305462000,-1158.26,0.00059726,120]
[426325814,1782305462000,-1944.73,0.00059726,120]
[426325812,1782305462000,-773.51,0.00059726,120]
[426325818,1782305462000,-500.0,0.00059726,120]
[426325817,1782305462000,-500.0,0.00059726,120]
[426325816,1782305462000,-1508.11,0.00059726,120]
[426325819,1782305462000,-2368.88,0.00059726,120]
[426325828,1782305462000,-16139.94,0.00059726,120]
[426325829,1782305462000,-852.17,0.00059726,120]
[426325820,1782305462000,-697.19,0.00059726,120]
[426325821,1782305462000,-605.81,0.00059726,120]
[426325822,1782305462000,-1055.6,0.00059726,11]
[426325826,1782305462000,-850.9,0.00059726,120]
[426325823,1782305462000,-500.0,0.00059726,2]
[426325825,1782305462000,-650.86,0.00059726,120]
[426325827,1782305462000,-1529.97,0.00059726,90]
[426325824,1782305462000,-713.71,0.00059726,120]
[426325833,1782305462000,-1679.07,0.00059726,120]
[426325835,1782305462000,-1522.77,0.00059726,120]
[426325836,1782305462000,-518.52,0.00059726,120]
[426325830,1782305462000,-3508.86,0.00059726,120]
[426325834,1782305462000,-2224.45,0.00059726,90]
[426325831,1782305462000,-624.84,0.00059726,120]
[426325805,1782305462000,-623.83,0.00059726,120]
[426325806,1782305462000,-500.0,0.00059726,120]
[426325832,1782305462000,-517.54,0.00059726,120]
[426325803,1782305462000,-799.0,0.00059726,6]
[426325804,1782305462000,-531.47,0.00059726,120]
[426325777,1782305462000,-1508.11,0.00059452,120]
[426325778,1782305462000,-500.0,0.00059452,120]
[426325781,1782305462000,-697.19,0.00059452,120]
[426325780,1782305462000,-2368.88,0.00059452,120]
[426325779,1782305462000,-500.0,0.00059452,120]
[426325785,1782305462000,-713.71,0.00059452,120]
[426325783,1782305462000,-1055.6,0.00059452,11]
[426325786,1782305462000,-650.86,0.00059452,120]
[426325787,1782305462000,-850.9,0.00059452,120]
[426325790,1782305462000,-852.17,0.00059452,120]
[426325795,1782305462000,-2224.45,0.00059452,90]
[426325791,1782305462000,-3508.86,0.00059452,120]
[426325788,1782305462000,-1529.97,0.00059452,90]
[426325774,1782305462000,-1158.26,0.00059452,120]
[426325793,1782305462000,-517.54,0.00059452,120]
[426325784,1782305462000,-500.0,0.00059452,2]
[426325802,1782305462000,-978.44,0.00059726,120]
[426325800,1782305462000,-489.83,0.00059655,30]
[426325798,1782305462000,-2131.75,0.00059452,120]
[426325799,1782305462000,-198.02875313,0.00059487,43]
[426325796,1782305462000,-1522.77,0.00059452,120]
[426325801,1782305462000,-514.6,0.00059726,120]
[426325807,1782305462000,-673.8,0.00059726,120]
[426325808,1782305462000,-500.0,0.00059726,2]
[426325794,1782305462000,-1679.07,0.00059452,120]
[426325792,1782305462000,-624.84,0.00059452,120]
[426325789,1782305462000,-16139.94,0.00059452,120]
[426325797,1782305462000,-518.52,0.00059452,120]
[426325867,1782305463000,-16139.94,0.00059999,120]
[426325868,1782305463000,-852.17,0.00059999,120]
[426325858,1782305463000,-2368.88,0.00059999,120]
[426325864,1782305463000,-650.86,0.00059999,120]
[426325866,1782305463000,-1529.97,0.00059999,90]
[426325862,1782305463000,-500.0,0.00059999,2]
[426325863,1782305463000,-713.71,0.00059999,120]
[426325879,1782305463000,-1000.0,0.0006,120]
[426325869,1782305463000,-3508.86,0.00059999,120]
[426325878,1782305463000,-168.0,0.0006,120]
[426325872,1782305463000,-1679.07,0.00059999,120]
[426325871,1782305463000,-517.54,0.00059999,120]
[426325877,1782305463000,-1000.0,0.0006,120]
[426325875,1782305463000,-518.52,0.00059999,120]
[426325860,1782305463000,-605.81,0.00059999,120]
[426325874,1782305463000,-1522.77,0.00059999,120]
[426325876,1782305463000,-2131.75,0.00059999,120]
[426325873,1782305463000,-2224.45,0.00059999,90]
[426325880,1782305463000,-404.23683897,0.0006,120]
[426325882,1782305463000,-978.44,0.00060273,120]
[426325870,1782305463000,-624.84,0.00059999,120]
[426325861,1782305463000,-1055.6,0.00059999,11]
[426325848,1782305463000,-853.95,0.00059999,120]
[426325857,1782305463000,-500.0,0.00059999,120]
[426325881,1782305463000,-514.6,0.00060273,120]
[426325837,1782305463000,-2131.75,0.00059726,120]
[426325838,1782305463000,-2000.0,0.000599,120]
[426325839,1782305463000,-2356.99515748,0.000599,120]
[426325840,1782305463000,-514.6,0.00059999,120]
[426325841,1782305463000,-978.44,0.00059999,120]
[426325842,1782305463000,-799.0,0.00059999,6]
[426325844,1782305463000,-623.83,0.00059999,120]
[426325843,1782305463000,-531.47,0.00059999,120]
[426325859,1782305463000,-697.19,0.00059999,120]
[426325854,1782305463000,-973.23,0.00059999,120]
[426325847,1782305463000,-500.0,0.00059999,2]
[426325850,1782305463000,-500.0,0.00059999,120]
[426325846,1782305463000,-673.8,0.00059999,120]
[426325849,1782305463000,-15325.24,0.00059999,120]
[426325851,1782305463000,-773.51,0.00059999,120]
[426325853,1782305463000,-1944.73,0.00059999,120]
[426325852,1782305463000,-1158.26,0.00059999,120]
[426325865,1782305463000,-850.9,0.00059999,120]
[426325856,1782305463000,-500.0,0.00059999,120]
[426325845,1782305463000,-445.90427811,0.00059999,120]
[426325855,1782305463000,-1508.11,0.00059999,120]
[426325884,1782305463000,-531.47,0.00060273,120]
[426325885,1782305463000,-623.83,0.00060273,120]
[426325911,1782305463000,-3618.056168,0.00060273,120]
[426325910,1782305463000,-3618.056168,0.00060273,120]
[426325913,1782305463000,-3618.056178,0.00060273,120]
[426325923,1782305463000,-799.0,0.00060547,6]
[426325912,1782305463000,-3618.056168,0.00060273,120]
[426325914,1782305463000,-624.84,0.00060273,120]
[426325916,1782305463000,-1679.07,0.00060273,120]
[426325917,1782305463000,-2224.45,0.00060273,90]
[426325918,1782305463000,-1522.77,0.00060273,120]
[426325907,1782305463000,-16139.94,0.00060273,120]
[426325915,1782305463000,-517.54,0.00060273,120]
[426325922,1782305463000,-978.44,0.00060547,120]
[426325919,1782305463000,-518.52,0.00060273,120]
[426325924,1782305463000,-531.47,0.00060547,120]
[426325926,1782305463000,-673.8,0.00060547,120]
[426325928,1782305463000,-296.92907354,0.00060547,2]
[426325927,1782305463000,-853.95,0.00060547,120]
[426325929,1782305463000,-15325.24,0.00060547,120]
[426325925,1782305463000,-623.83,0.00060547,120]
[426325883,1782305463000,-799.0,0.00060273,6]
[426325920,1782305463000,-2131.75,0.00060273,120]
[426325908,1782305463000,-852.17,0.00060273,120]
[426325921,1782305463000,-514.6,0.00060547,120]
[426325906,1782305463000,-1529.97,0.00060273,90]
[426325886,1782305463000,-673.8,0.00060273,120]
[426325909,1782305463000,-3508.86,0.00060273,120]
[426325887,1782305463000,-853.95,0.00060273,120]
[426325888,1782305463000,-500.0,0.00060273,2]
[426325890,1782305463000,-282.15902263,0.00060273,120]
[426325892,1782305463000,-1158.26,0.00060273,120]
[426325891,1782305463000,-773.51,0.00060273,120]
[426325893,1782305463000,-1944.73,0.00060273,120]
[426325894,1782305463000,-973.23,0.00060273,120]
[426325896,1782305463000,-500.0,0.00060273,120]
[426325889,1782305463000,-15325.24,0.00060273,120]
[426325898,1782305463000,-2368.88,0.00060273,120]
[426325897,1782305463000,-500.0,0.00060273,120]
[426325900,1782305463000,-605.81,0.00060273,120]
[426325901,1782305463000,-1055.6,0.00060273,11]
[426325899,1782305463000,-697.19,0.00060273,120]
[426325902,1782305463000,-500.0,0.00060273,2]
[426325903,1782305463000,-713.71,0.00060273,120]
[426325895,1782305463000,-1508.11,0.00060273,120]
[426325904,1782305463000,-650.86,0.00060273,120]
[426325905,1782305463000,-850.9,0.00060273,120]
[426325963,1782305464000,-15325.24,0.00060821,120]
[426325971,1782305464000,-697.19,0.00060821,120]
[426325970,1782305464000,-2368.88,0.00060821,120]
[426325969,1782305464000,-542.18808091,0.00060821,120]
[426325968,1782305464000,-1508.11,0.00060821,120]
[426325962,1782305464000,-853.95,0.00060821,120]
[426325966,1782305464000,-1944.73,0.00060821,120]
[426325965,1782305464000,-1158.26,0.00060821,120]
[426325964,1782305464000,-773.51,0.00060821,120]
[426325973,1782305464000,-1055.6,0.00060821,11]
[426325972,1782305464000,-605.81,0.00060821,120]
[426325967,1782305464000,-973.23,0.00060821,120]
[426325974,1782305464000,-713.71,0.00060821,120]
[426325981,1782305464000,-624.84,0.00060821,120]
[426325979,1782305464000,-852.17,0.00060821,120]
[426325977,1782305464000,-1529.97,0.00060821,90]
[426325975,1782305464000,-650.86,0.00060821,120]
[426325980,1782305464000,-3508.86,0.00060821,120]
[426325985,1782305464000,-1522.77,0.00060821,120]
[426325983,1782305464000,-1679.07,0.00060821,120]
[426325978,1782305464000,-16139.94,0.00060821,120]
[426325984,1782305464000,-2224.45,0.00060821,90]
[426325986,1782305464000,-518.52,0.00060821,120]
[426325982,1782305464000,-517.54,0.00060821,120]
[426325988,1782305464000,-150.0,0.00061,120]
[426325961,1782305464000,-673.8,0.00060821,120]
[426325976,1782305464000,-850.9,0.00060821,120]
[426325960,1782305464000,-623.83,0.00060821,120]
[426325937,1782305464000,-2368.88,0.00060547,120]
[426325953,1782305464000,-1522.77,0.00060547,120]
[426325934,1782305464000,-1508.11,0.00060547,120]
[426325931,1782305464000,-1158.26,0.00060547,120]
[426325933,1782305464000,-973.23,0.00060547,120]
[426325930,1782305464000,-773.51,0.00060547,120]
[426325936,1782305464000,-500.0,0.00060547,120]
[426325935,1782305464000,-549.8396274,0.00060547,120]
[426325932,1782305464000,-1944.73,0.00060547,120]
[426325947,1782305464000,-852.17,0.00060547,120]
[426325948,1782305464000,-3508.86,0.00060547,120]
[426325938,1782305464000,-697.19,0.00060547,120]
[426325940,1782305464000,-1055.6,0.00060547,11]
[426325939,1782305464000,-605.81,0.00060547,120]
[426325944,1782305464000,-850.9,0.00060547,120]
[426325942,1782305464000,-713.71,0.00060547,120]
[426325946,1782305464000,-16139.94,0.00060547,120]
[426325941,1782305464000,-548.13362628,0.00060547,2]
[426325943,1782305464000,-650.86,0.00060547,120]
[426325945,1782305464000,-1529.97,0.00060547,90]
[426325999,1782305464000,-1158.36137408,0.00061095,120]
[426325957,1782305464000,-978.44,0.00060821,120]
[426325954,1782305464000,-518.52,0.00060547,120]
[426325956,1782305464000,-514.6,0.00060821,120]
[426325955,1782305464000,-2131.75,0.00060547,120]
[426325950,1782305464000,-517.54,0.00060547,120]
[426325959,1782305464000,-531.47,0.00060821,120]
[426325952,1782305464000,-2224.45,0.00060547,90]
[426325951,1782305464000,-1679.07,0.00060547,120]
[426325958,1782305464000,-799.0,0.00060821,6]
[426325989,1782305464000,-200.18572387,0.00061,120]
[426325949,1782305464000,-624.84,0.00060547,120]
[426325987,1782305464000,-2131.75,0.00060821,120]
[426326023,1782305464000,-2000.0,0.000619,120]
[426326032,1782305464000,-300.0,0.00064,120]
[426326028,1782305464000,-1000.0,0.00063495,120]
[426326021,1782305464000,-198.02875313,0.00061238,44]
[426326026,1782305464000,-2000.0,0.00063,120]
[426326030,1782305464000,-579.0,0.00063495,120]
[426326031,1782305464000,-2000.0,0.000639,120]
[426326029,1782305464000,-1000.0,0.00063495,120]
[426326025,1782305464000,-1000.0,0.00062,120]
[426326027,1782305464000,-198.02875313,0.00063041,45]
[426326044,1782305464000,-400.0,0.00068619,2]
[426326034,1782305464000,-201.0,0.00064698,2]
[426326035,1782305464000,-198.02875313,0.00064894,47]
[426326040,1782305464000,-198.02875313,0.00066799,48]
[426326041,1782305464000,-1000.0,0.00067,120]
[426326043,1782305464000,-10000.0,0.00068493,120]
[426326036,1782305464000,-1000.0,0.00065,120]
[426326042,1782305464000,-10000.0,0.00068493,120]
[426326039,1782305464000,-1000.0,0.00066,120]
[426326038,1782305464000,-2000.0,0.000659,120]
[426326037,1782305464000,-168.0,0.00065,120]
[426326045,1782305464000,-400.0,0.00068619,2]
[426326049,1782305464000,-400.0,0.00068619,2]
[426326047,1782305464000,-400.0,0.00068619,2]
[426326046,1782305464000,-400.0,0.00068619,2]
[426326048,1782305464000,-400.0,0.00068619,2]
[426325998,1782305464000,-773.71722367,0.00061095,120]
[426326022,1782305464000,-2000.0,0.000614,120]
[426326024,1782305464000,-1000.0,0.00061999,120]
[426326033,1782305464000,-183.0,0.0006462,120]
[426326017,1782305464000,-1522.92982824,0.00061095,120]
[426326019,1782305464000,-518.74836699,0.00061095,120]
[426325996,1782305464000,-854.09236345,0.00061095,120]
[426325991,1782305464000,-978.52,0.00061095,120]
[426325994,1782305464000,-624.03319412,0.00061095,120]
[426325993,1782305464000,-531.59339666,0.00061095,120]